fUST/lending_fUST_20250624
["ID","MTS","AMOUNT","RATE_DAILY","PERIOD"]
[367242008,1750713041462,-460.0,0.00019508,2]
[367242009,1750713041472,-460.0,0.00019508,2]
[367242010,1750713041482,-460.0,0.00019508,2]
[367242011,1750713041492,-460.0,0.00019508,2]
[367242012,1750713041501,-460.0,0.00019508,2]
[367242013,1750713041511,-460.0,0.00019508,2]
[367242014,1750713041520,-460.0,0.00019508,2]
[367242015,1750713041530,-460.0,0.00019508,2]
[367242016,1750713041541,-460.0,0.00019508,2]
[367242017,1750713041551,-460.0,0.00019508,2]
[367242018,1750713041560,-460.0,0.00019508,2]
[367242019,1750713041571,-460.0,0.00019508,2]
[367242020,1750713041580,-460.0,0.00019508,2]
[367242021,1750713041590,-460.0,0.00019508,2]
[367242022,1750713041600,-460.0,0.00019508,2]
[367242023,1750713041611,-400.21602134,0.00019508,2]
[367242024,1750713041620,-500.0,0.00019508,2]
[367242025,1750713041631,-638.1,0.00019508,2]
[367242026,1750713041642,-460.0,0.00019508,2]
[367242027,1750713041652,-460.0,0.00019508,2]
[367242028,1750713041662,-460.0,0.00019508,2]
[367242029,1750713041671,-460.0,0.00019508,2]
[367242030,1750713041682,-741.03,0.00019508,2]
[367242031,1750713041692,-460.0,0.00019508,2]
[367242032,1750713041702,-460.0,0.00019508,2]
[367242033,1750713041712,-749.26,0.00019508,2]
[367242034,1750713041722,-460.0,0.00019508,2]
[367242035,1750713041731,-526.39,0.00019508,2]
[367242036,1750713041741,-2964.55,0.00019508,2]
[367242037,1750713041751,-460.0,0.00019508,2]
[367242038,1750713041760,-460.0,0.00019508,2]
[367242039,1750713041770,-460.0,0.00019508,2]
[367242040,1750713041780,-460.0,0.00019508,2]
[367242041,1750713041789,-460.0,0.00019508,2]
[367242042,1750713041799,-460.0,0.00019508,2]
[367242043,1750713041808,-2045.16,0.00019508,2]
[367242044,1750713041816,-476.44,0.00019508,2]
[367242045,1750713041827,-460.0,0.00019508,2]
[367242046,1750713041836,-460.0,0.00019508,2]
[367242047,1750713041846,-610.23,0.00019508,2]
[367242048,1750713041855,-460.0,0.00019508,2]
[367242049,1750713041864,-3382.79,0.00019508,2]
[367242050,1750713041874,-588.75,0.00019508,2]
[367242051,1750713041884,-2795.99,0.00019508,2]
[367242052,1750713041894,-460.0,0.00019508,2]
[367242053,1750713041904,-460.0,0.00019508,2]
[367242054,1750713041913,-1238.41,0.00019508,2]
[367242055,1750713041923,-460.0,0.00019511,2]
[367242056,1750713041932,-387.900999,0.00019511,2]
[367242057,1750713041942,-460.0,0.00019511,2]
[367242058,1750713041951,-460.0,0.00019511,2]
[367242059,1750713041961,-460.0,0.00019511,2]
[367242060,1750713041971,-460.0,0.00019511,2]
[367242061,1750713041981,-545.78860857,0.00019511,2]
[367242062,1750713041990,-460.0,0.00019511,2]
[367242063,1750713042000,-317.62276215,0.00019511,2]
[367242064,1750713042009,-460.0,0.00019511,2]
[367242065,1750713042019,-460.0,0.00019511,2]
[367242066,1750713042028,-460.0,0.00019511,2]
[367242067,1750713042038,-460.0,0.00019511,2]
[367242068,1750713042048,-460.0,0.00019511,2]
[367242069,1750713042058,-757.95,0.00019511,2]
[367242070,1750713042067,-460.0,0.00019511,2]
[367242071,1750713042078,-468.15,0.00019511,2]
[367242072,1750713042088,-460.0,0.00019511,2]
[367242073,1750713042098,-460.0,0.00019511,2]
[367242074,1750713042108,-460.0,0.00019511,2]
[367242075,1750713042117,-460.0,0.00019511,2]
[367242076,1750713042127,-617.16786251,0.00019511,2]
[367242077,1750713042137,-460.0,0.00019511,2]
[367242078,1750713042147,-460.0,0.00019511,2]
[367242079,1750713042156,-460.0,0.00019511,2]
[367242080,1750713042166,-460.0,0.00019511,2]
[367242081,1750713042176,-460.0,0.00019511,2]
[367242082,1750713042186,-460.0,0.00019511,2]
[367242083,1750713042195,-460.0,0.00019511,2]
[367242084,1750713042205,-460.0,0.00019511,2]
[367242085,1750713042215,-460.0,0.00019511,2]
[367242086,1750713042225,-460.0,0.00019511,2]
[367242087,1750713042235,-472.41,0.00019511,2]
[367242088,1750713042245,-460.0,0.00019511,2]
[367242089,1750713042255,-460.0,0.00019511,2]
[367242090,1750713042264,-460.0,0.00019511,2]
[367242091,1750713042274,-460.0,0.00019511,2]
[367242092,1750713042284,-696.67,0.00019511,2]
[367242093,1750713042294,-460.0,0.00019511,2]
[367242094,1750713042304,-460.0,0.00019511,2]
[367242095,1750713042314,-460.0,0.00019511,2]
[367242096,1750713042324,-460.0,0.00019511,2]
[367242097,1750713042333,-460.0,0.00019511,2]
[367242098,1750713042343,-632.2,0.00019511,2]
[367242099,1750713042352,-460.0,0.00019511,2]
[367242100,1750713042362,-460.0,0.00019511,2]
[367242101,1750713042373,-601.88215911,0.00019511,2]
[367242102,1750713042383,-460.0,0.00019511,2]
[367242103,1750713042393,-460.0,0.00019511,2]
[367242104,1750713042403,-460.0,0.00019511,2]
[367242105,1750713042412,-151.0,0.00019511,2]
[367242106,1750713042422,-151.0,0.00019511,2]
[367242107,1750713042432,-151.0,0.00019511,2]
[367242108,1750713042442,-151.0,0.00019511,2]
[367242109,1750713042451,-151.0,0.00019511,2]
[367242110,1750713042463,-460.0,0.00019518,2]
[367242111,1750713042473,-460.0,0.00019518,2]
[367242112,1750713042483,-460.0,0.00019518,2]
[367242113,1750713042492,-460.0,0.00019518,2]
[367242114,1750713042502,-460.0,0.00019518,2]
[367242115,1750713042514,-460.0,0.00019519,2]
[367242116,1750713042524,-460.0,0.00019519,2]
[367242117,1750713042535,-460.0,0.00019519,2]
[367242118,1750713042544,-460.0,0.00019519,2]
[367242119,1750713042554,-460.0,0.00019519,2]
[367242120,1750713042564,-460.0,0.00019519,2]
[367242121,1750713042573,-460.0,0.00019519,2]
[367242122,1750713042583,-460.0,0.00019519,2]
[367242123,1750713042592,-460.0,0.00019519,2]
[367242124,1750713042602,-460.0,0.00019519,2]
[367242125,1750713042612,-460.0,0.00019519,2]
[367242126,1750713042622,-151.0,0.000196,2]
[367242127,1750713042632,-354.0,0.00019695,2]
[367242128,1750713042642,-160.0,0.000197,2]
[367242129,1750713042651,-160.0,0.000197,2]
[367242130,1750713042661,-160.0,0.000197,2]
[367242131,1750713042671,-213.63163053,0.000197,2]
[367242132,1750713042680,-230.18214666,0.000197,2]
[367242133,1750713042690,-160.0,0.000197,2]
[367242134,1750713042699,-425.08510397,0.000197,2]
[367242135,1750713042709,-160.0,0.000197,2]
[367242136,1750713042719,-836.70095952,0.000197,2]
[367242137,1750713042728,-12553.69357174,0.000197,2]
[367242138,1750713042738,-846.53928378,0.000197,2]
[367242139,1750713042748,-160.0,0.000197,2]
[367242140,1750713042758,-160.0,0.000197,2]
[367242141,1750713042768,-437.24886619,0.00019701,2]
[367242142,1750713042778,-341.58285766,0.00019766,2]
[367242143,1750713042787,-460.0,0.00019766,2]
[367242144,1750713042796,-460.0,0.00019766,2]
[367242145,1750713042806,-460.0,0.00019766,2]
[367242146,1750713042816,-217.47,0.00019768,2]
[367242147,1750713042826,-460.0,0.00019768,2]
[367242148,1750713042835,-1917.77,0.00019768,2]
[367242149,1750713042846,-460.0,0.00019768,2]
[367242150,1750713042856,-1996.47,0.00019768,2]
[367242151,1750713042865,-591.26,0.00019769,2]
[367242152,1750713042876,-460.0,0.0001977,2]
[367242153,1750713042885,-460.0,0.0001977,2]
[367242154,1750713042895,-2458.42,0.0001977,2]
[367242155,1750713042906,-768.95,0.0001977,2]
[367242156,1750713042917,-499.06,0.0001977,2]
[367242157,1750713042927,-460.0,0.0001977,2]
[367242158,1750713042938,-460.0,0.0001977,2]
[367242159,1750713042948,-1326.42,0.0001977,2]
[367242160,1750713042964,-460.0,0.0001977,2]
[367242161,1750713042977,-1916.14,0.0001977,2]
[367242162,1750713042986,-2981.58,0.0001977,2]
[367242163,1750713042996,-561.49,0.0001977,2]
[367242164,1750713043005,-998.87,0.0001977,2]
[367242165,1750713043015,-460.0,0.0001977,2]
[367242166,1750713043025,-746.54,0.0001977,2]
[367242167,1750713043034,-1197.46,0.0001977,2]
[367242168,1750713043044,-868.07,0.0001977,2]
[367242169,1750713043053,-608.93,0.0001977,2]
[367242170,1750713043063,-3607.91,0.0001977,2]
[367242171,1750713043072,-460.0,0.0001977,2]
[367242172,1750713043082,-460.0,0.0001977,2]
[367242173,1750713043092,-586.65,0.0001977,2]
[367242174,1750713043101,-460.0,0.0001977,2]
[367242175,1750713043111,-1233.5,0.0001977,2]
[367242176,1750713043120,-852.78,0.0001977,2]
[367242177,1750713043130,-811.33,0.0001977,2]
[367242178,1750713043139,-460.0,0.0001977,2]
[367242179,1750713043149,-460.0,0.0001977,2]
[367242180,1750713043159,-5000.0,0.0001977,2]
[367242181,1750713043168,-555.818725,0.00019773,2]
[367242182,1750713043178,-555.818725,0.00019773,2]
[367242183,1750713043188,-462.01,0.00019777,2]
[367242184,1750713043198,-460.0,0.00019777,2]
[367242185,1750713043208,-481.60211631,0.00019777,2]
[367242186,1750713043218,-460.0,0.00019777,2]
[367242187,1750713043228,-460.0,0.00019777,2]
[367242188,1750713043238,-460.0,0.00019777,2]
[367242189,1750713043247,-460.0,0.00019777,2]
[367242190,1750713043257,-460.0,0.00019777,2]
[367242191,1750713043266,-460.0,0.00019777,2]
[367242192,1750713043276,-460.0,0.00019777,2]
[367242193,1750713043286,-460.0,0.00019777,2]
[367242194,1750713043295,-555.63,0.00019777,2]
[367242195,1750713043305,-460.0,0.00019777,2]
[367242196,1750713043315,-460.0,0.00019777,2]
[367242197,1750713043325,-460.0,0.00019777,2]
[367242198,1750713043335,-460.0,0.00019777,2]
[367242199,1750713043344,-460.0,0.00019777,2]
[367242200,1750713043354,-460.0,0.00019777,2]
[367242201,1750713043363,-356.45344417,0.00019777,2]
[367242204,1750713043372,-460.0,0.00019777,2]
[367242206,1750713043382,-460.0,0.00019777,2]
[367242208,1750713043391,-535.05801778,0.00019777,2]
[367242209,1750713043402,-460.0,0.00019777,2]
[367242210,1750713043412,-460.0,0.00019777,2]
[367242211,1750713043422,-834.36,0.00019777,2]
[367242212,1750713043431,-460.0,0.00019777,2]
[367242213,1750713043442,-460.0,0.00019777,2]
[367242214,1750713043453,-460.0,0.00019777,2]
[367242215,1750713043465,-460.0,0.00019777,2]
[367242216,1750713043475,-460.0,0.00019777,2]
[367242217,1750713043485,-460.0,0.00019777,2]
[367242218,1750713043495,-460.0,0.00019777,2]
[367242220,1750713043506,-460.0,0.00019777,2]
[367242221,1750713043516,-460.0,0.00019777,2]
[367242222,1750713043526,-460.0,0.00019777,2]
[367242223,1750713043537,-460.0,0.00019777,2]
[367242224,1750713043547,-460.0,0.00019777,2]
[367242225,1750713043558,-460.0,0.00019777,2]
[367242227,1750713043567,-434.46604087,0.00019777,2]
[367242229,1750713043577,-460.0,0.00019777,2]
[367242230,1750713043587,-460.0,0.00019777,2]
[367242231,1750713043597,-460.0,0.00019777,2]
[367242232,1750713043607,-460.0,0.00019777,2]
[367242233,1750713043616,-151.0,0.00019777,2]
[367242234,1750713043626,-460.0,0.00019777,2]
[367242235,1750713043636,-460.0,0.00019777,2]
[367242236,1750713043646,-460.0,0.00019777,2]
[367242237,1750713043656,-210.484458,0.00019777,2]
[367242257,1750713043840,-460.0,0.00019777,2]
[367242259,1750713043849,-460.0,0.00019777,2]
[367242261,1750713043859,-767.071298,0.00019777,2]
[367242263,1750713043869,-767.071298,0.00019777,2]
[367242265,1750713043878,-460.0,0.00019777,2]
[367242268,1750713043888,-460.0,0.00019777,2]
[367242271,1750713043897,-151.0,0.00019777,2]
[367242274,1750713043907,-460.0,0.00019777,2]
[367242276,1750713043916,-460.0,0.00019777,2]
[367242278,1750713043926,-460.0,0.00019777,2]
[367242280,1750713043935,-460.0,0.00019777,2]
[367242282,1750713043944,-574.96,0.00019777,2]
[367242284,1750713043954,-460.0,0.00019777,2]
[367242286,1750713043963,-460.0,0.00019777,2]
[367242288,1750713043973,-460.0,0.00019777,2]
[367242290,1750713043982,-460.0,0.00019777,2]
[367242292,1750713043991,-460.0,0.00019777,2]
[367242294,1750713044001,-460.0,0.00019777,2]
[367242296,1750713044011,-460.0,0.00019777,2]
[367242298,1750713044020,-460.0,0.00019777,2]
[367242300,1750713044030,-1007.44,0.00019777,2]
[367242302,1750713044039,-460.0,0.00019777,2]
[367242304,1750713044049,-460.0,0.00019777,2]
[367242306,1750713044058,-500.0,0.00019777,2]
[367242308,1750713044068,-468.72,0.00019777,2]
[367242310,1750713044078,-778.84,0.00019777,2]
[367242312,1750713044088,-691.92,0.00019777,2]
[367242314,1750713044098,-460.0,0.00019777,2]
[367242316,1750713044108,-460.0,0.00019777,2]
[367242318,1750713044118,-460.0,0.00019777,2]
[367242320,1750713044127,-681.31,0.00019777,2]
[367242322,1750713044136,-460.0,0.00019777,2]
[367242324,1750713044146,-673.85,0.00019777,2]
[367242326,1750713044155,-460.0,0.00019777,2]
[367242328,1750713044165,-688.21,0.00019777,2]
[367242330,1750713044174,-460.0,0.00019777,2]
[367242332,1750713044183,-607.83,0.00019777,2]
[367242334,1750713044193,-460.0,0.00019777,2]
[367242336,1750713044203,-460.0,0.00019777,2]
[367242338,1750713044212,-460.0,0.00019777,2]
[367242340,1750713044222,-548.66,0.00019777,2]
[367242343,1750713044231,-460.0,0.00019777,2]
[367242345,1750713044240,-155.61093178,0.00019777,2]
[367242347,1750713044250,-611.84,0.00019777,2]
[367242349,1750713044259,-460.0,0.00019777,2]
[367242350,1750713044270,-1114.83,0.00019777,2]
[367242353,1750713044280,-460.0,0.00019777,2]
[367242355,1750713044289,-460.0,0.00019777,2]
[367242357,1750713044299,-872.33,0.00019777,2]
[367242359,1750713044308,-460.0,0.00019777,2]
[367242361,1750713044317,-460.0,0.00019777,2]
[367242363,1750713044327,-460.0,0.00019777,2]
[367242365,1750713044336,-460.0,0.00019777,2]
[367242367,1750713044347,-460.0,0.00019777,2]
[367242369,1750713044356,-460.0,0.00019777,2]
[367242371,1750713044366,-460.0,0.00019777,2]
[367242373,1750713044375,-648.26,0.00019777,2]
[367242375,1750713044385,-460.0,0.00019777,2]
[367242377,1750713044394,-460.0,0.00019777,2]
[367242379,1750713044403,-221.08437545,0.00019777,2]
[367242381,1750713044414,-1112.93,0.00019777,2]
[367242383,1750713044423,-460.0,0.0001978,2]
[367242385,1750713044432,-460.0,0.0001978,2]
[367242387,1750713044442,-460.0,0.00019781,2]
[367242389,1750713044451,-460.0,0.00019781,2]
[367242391,1750713044465,-460.0,0.00019781,2]
[367242393,1750713044474,-460.0,0.00019781,2]
[367242395,1750713044484,-460.0,0.00019781,2]
[367242397,1750713044493,-460.0,0.00019781,2]
[367242399,1750713044503,-460.0,0.00019781,2]
[367242401,1750713044512,-306.68343086,0.00019781,2]
[367242403,1750713044522,-460.0,0.00019781,2]
[367242405,1750713044531,-219.159322,0.00019781,2]
[367242407,1750713044543,-460.0,0.00019781,2]
[367242409,1750713044552,-151.0,0.00019781,2]
[367242411,1750713044561,-460.0,0.00019781,2]
[367242413,1750713044570,-460.0,0.00019781,2]
[367242415,1750713044580,-151.0,0.00019781,2]
[367242417,1750713044589,-1763.36,0.00019781,2]
[367242419,1750713044599,-735.83,0.00019781,2]
[367242421,1750713044608,-460.0,0.00019781,2]
[367242423,1750713044618,-6806.59,0.00019781,2]
[367242425,1750713044627,-1456.91,0.00019781,2]
[367242427,1750713044637,-1053.14,0.00019781,2]
[367242429,1750713044646,-460.0,0.00019781,2]
[367242431,1750713044656,-799.06,0.00019781,2]
[367242433,1750713044665,-460.0,0.00019781,2]
[367242435,1750713044675,-1090.77,0.00019781,2]
[367242437,1750713044684,-749.477381,0.00019781,2]
[367242439,1750713044694,-749.477381,0.00019781,2]
[367242441,1750713044703,-938.86,0.00019781,2]
[367242443,1750713044713,-151.0,0.00019781,2]
[367242445,1750713044723,-151.0,0.00019781,2]
[367242447,1750713044734,-2416.82,0.00019781,2]
[367242450,1750713044744,-951.38,0.00019781,2]
[367242452,1750713044754,-460.0,0.00019781,2]
[367242454,1750713044764,-564.51,0.00019781,2]
[367242456,1750713044773,-460.0,0.00019781,2]
[367242458,1750713044783,-460.0,0.00019782,2]
[367242460,1750713044792,-236.00006241,0.00019782,2]
[367242462,1750713044801,-525.08440143,0.00019782,2]
[367242464,1750713044810,-460.0,0.00019782,2]
[367242466,1750713044819,-460.0,0.00019782,2]
[367242468,1750713044829,-510.67,0.00019782,2]
[367242470,1750713044838,-460.0,0.00019782,2]
[367242472,1750713044847,-460.0,0.00019782,2]
[367242474,1750713044856,-151.0,0.00019782,2]
[367242476,1750713044865,-460.0,0.00019782,2]
[367242478,1750713044875,-460.0,0.00019782,2]
[367242480,1750713044884,-460.0,0.00019782,2]
[367242482,1750713044894,-500.0,0.00019782,2]
[367242484,1750713044903,-170.504754,0.00019782,2]
[367242486,1750713044913,-638.1,0.00019782,2]
[367242488,1750713044923,-170.504754,0.00019782,2]
[367242490,1750713044932,-460.0,0.00019782,2]
[367242492,1750713044941,-318.474938,0.00019782,2]
[367242494,1750713044951,-318.474938,0.00019782,2]
[367242496,1750713044960,-460.0,0.00019782,2]
[367242498,1750713044970,-460.0,0.00019782,2]
[367242500,1750713044979,-151.0,0.00019782,2]
[367242502,1750713044988,-460.0,0.00019782,2]
[367242504,1750713044998,-741.03,0.00019782,2]
[367242506,1750713045008,-460.0,0.00019782,2]
[367242508,1750713045017,-460.0,0.00019782,2]
[367242510,1750713045027,-749.26,0.00019782,2]
[367242512,1750713045037,-460.0,0.00019782,2]
[367242514,1750713045046,-526.39,0.00019782,2]
[367242517,1750713045056,-2964.55,0.00019782,2]
[367242518,1750713045064,-460.0,0.00019782,2]
[367242521,1750713045074,-460.0,0.00019782,2]
[367242522,1750713045084,-208.068161,0.00019782,2]
[367242524,1750713045093,-208.068161,0.00019782,2]
[367242526,1750713045102,-151.342516,0.00019782,2]
[367242528,1750713045112,-460.0,0.00019782,2]
[367242531,1750713045123,-151.342516,0.00019782,2]
[367242532,1750713045132,-260.397465,0.00019782,2]
[367242535,1750713045142,-460.0,0.00019782,2]
[367242537,1750713045151,-460.0,0.00019782,2]
[367242539,1750713045160,-460.0,0.00019782,2]
[367242541,1750713045169,-2045.16,0.00019782,2]
[367242542,1750713045178,-476.44,0.00019782,2]
[367242544,1750713045187,-460.0,0.00019782,2]
[367242546,1750713045196,-610.23,0.00019782,2]
[367242549,1750713045206,-460.0,0.00019782,2]
[367242550,1750713045215,-3382.79,0.00019782,2]
[367242553,1750713045225,-588.75,0.00019782,2]
[367242555,1750713045235,-2795.99,0.00019782,2]
[367242557,1750713045244,-151.0,0.00019782,2]
[367242559,1750713045254,-460.0,0.00019782,2]
[367242561,1750713045263,-292.776368,0.00019782,2]
[367242563,1750713045272,-292.776368,0.00019782,2]
[367242564,1750713045281,-460.0,0.00019782,2]
[367242566,1750713045291,-300.812604,0.00019782,2]
[367242568,1750713045300,-293.815972,0.00019782,2]
[367242571,1750713045310,-151.0,0.00019782,2]
[367242573,1750713045319,-1238.41,0.00019782,2]
[367242574,1750713045329,-293.673515,0.00019782,2]
[367242577,1750713045338,-293.673515,0.00019782,2]
[367242578,1750713045348,-151.0,0.00019782,2]
[367242581,1750713045358,-299.08204949,0.00019785,2]
[367242583,1750713045367,-460.0,0.00019785,2]
[367242585,1750713045377,-460.0,0.00019785,2]
[367242586,1750713045386,-460.0,0.00019785,2]
[367242589,1750713045396,-480.9,0.00019785,2]
[367242591,1750713045406,-460.0,0.00019785,2]
[367242593,1750713045415,-757.95,0.00019785,2]
[367242595,1750713045425,-460.0,0.00019785,2]
[367242597,1750713045435,-468.15,0.00019785,2]
[367242599,1750713045445,-460.0,0.00019785,2]
[367242601,1750713045455,-471.47923443,0.00019785,2]
[367242603,1750713045467,-151.0,0.00019785,2]
[367242605,1750713045476,-460.0,0.00019785,2]
[367242607,1750713045486,-189.641576,0.00019785,2]
[367242609,1750713045495,-460.0,0.00019785,2]
[367242611,1750713045506,-460.0,0.00019785,2]
[367242613,1750713045515,-151.0,0.00019785,2]
[367242615,1750713045524,-151.0,0.00019785,2]
[367242617,1750713045535,-222.134489,0.00019785,2]
[367242619,1750713045544,-222.134489,0.00019785,2]
[367242620,1750713045553,-460.0,0.00019785,2]
[367242622,1750713045563,-460.0,0.00019785,2]
[367242624,1750713045573,-460.0,0.00019785,2]
[367242627,1750713045583,-460.0,0.00019785,2]
[367242629,1750713045592,-151.0,0.00019785,2]
[367242630,1750713045602,-460.0,0.00019785,2]
[367242632,1750713045611,-168.543402,0.00019785,2]
[367242635,1750713045621,-151.0,0.00019785,2]
[367242636,1750713045630,-168.543402,0.00019785,2]
[367242638,1750713045640,-151.0,0.00019785,2]
[367242641,1750713045652,-151.0,0.00019785,2]
[367242643,1750713045662,-151.0,0.00019785,2]
[367242645,1750713045671,-472.41,0.00019785,2]
[367242646,1750713045680,-151.0,0.00019785,2]
[367242649,1750713045690,-151.0,0.00019785,2]
[367242650,1750713045700,-151.0,0.00019785,2]
[367242653,1750713045710,-460.0,0.00019785,2]
[367242655,1750713045720,-460.0,0.00019785,2]
[367242656,1750713045729,-460.0,0.00019785,2]
[367242659,1750713045739,-696.67,0.00019785,2]
[367242660,1750713045748,-460.0,0.00019785,2]
[367242663,1750713045758,-460.0,0.00019785,2]
[367242665,1750713045768,-460.0,0.00019785,2]
[367242667,1750713045777,-460.0,0.00019785,2]
[367242669,1750713045787,-460.0,0.00019785,2]
[367242670,1750713045796,-632.2,0.00019785,2]
[367242672,1750713045806,-411.71471395,0.00019785,2]
[367242675,1750713045816,-460.0,0.00019785,2]
[367242677,1750713045825,-460.0,0.00019785,2]
[367242678,1750713045835,-600.21671667,0.00019785,2]
[367242680,1750713045844,-460.0,0.00019785,2]
[367242682,1750713045854,-151.0,0.00019792,2]
[367242684,1750713045864,-151.0,0.00019792,2]
[367242686,1750713045873,-320.415296,0.00019792,2]
[367242688,1750713045882,-320.415296,0.00019792,2]
[367242690,1750713045892,-460.0,0.00019792,2]
[367242692,1750713045901,-460.0,0.00019792,2]
[367242694,1750713045910,-443.79953179,0.00019792,2]
[367242696,1750713045920,-460.0,0.00019792,2]
[367242698,1750713045929,-460.0,0.00019792,2]
[367242700,1750713045939,-1025.727858,0.00019792,2]
[367242702,1750713045949,-1025.727858,0.00019792,2]
[367242704,1750713045959,-151.0,0.00019793,2]
[367242706,1750713045969,-2907.4199,0.00019793,2]
[367242708,1750713045979,-2907.4199,0.00019793,2]
[367242710,1750713045988,-460.0,0.00019793,2]
[367242712,1750713045997,-460.0,0.00019793,2]
[367242714,1750713046006,-460.0,0.00019793,2]
[367242716,1750713046015,-460.0,0.00019793,2]
[367242718,1750713046024,-460.0,0.00019793,2]
[367242720,1750713046034,-389.65206429,0.00019793,2]
[367242722,1750713046043,-460.0,0.00019793,2]
[367242724,1750713046052,-460.0,0.00019793,2]
[367242726,1750713046062,-347.26803242,0.00019793,2]
[367242728,1750713046071,-460.0,0.00019793,2]
[367242730,1750713046080,-555.818725,0.00019793,2]
[367242732,1750713046089,-555.818725,0.00019793,2]
[367242734,1750713046098,-151.0,0.000198,2]
[367242741,1750713046155,-500.0,0.00019821,2]
[367242743,1750713046165,-500.0,0.00019821,2]
[367242745,1750713046175,-553.13788572,0.00019821,2]
[367242747,1750713046184,-1000.0,0.00019821,2]
[367242749,1750713046194,-1000.0,0.00019821,2]
[367242751,1750713046203,-1000.0,0.00019821,2]
[367242753,1750713046213,-1000.0,0.00019821,2]
[367242755,1750713046223,-1000.0,0.00019821,2]
[367242757,1750713046232,-500.0,0.00019824,2]
[367242759,1750713046242,-500.0,0.00019824,2]
[367242762,1750713046252,-575.1298776,0.00019824,2]
[367242764,1750713046261,-500.0,0.00019824,2]
[367242766,1750713046270,-500.0,0.00019824,2]
[367242768,1750713046279,-500.0,0.00019828,2]
[367242771,1750713046288,-500.0,0.00019828,2]
[367242773,1750713046299,-500.0,0.00019828,2]
[367242775,1750713046309,-168.0,0.00019878,2]
[367242777,1750713046318,-151.0,0.000199,2]
[367242779,1750713046327,-151.0,0.000199,2]
[367242781,1750713046338,-785.89961003,0.00019931,2]
[367242783,1750713046348,-168.0,0.00019937,2]
[367242785,1750713046357,-2248.19217842,0.00019961,2]
[367242787,1750713046367,-151.0,0.00019961,2]
[367242789,1750713046376,-151.0,0.00019961,2]
[367242791,1750713046386,-151.0,0.0002,3]
[367242793,1750713046395,-55596.2992365,0.0002,2]
[367242795,1750713046404,-767.071298,0.0002,2]
[367242797,1750713046414,-767.071298,0.0002,2]
[367242799,1750713046423,-151.0,0.0002,2]
[367242801,1750713046432,-151.0,0.0002,2]
[367242803,1750713046441,-749.477381,0.0002,2]
[367242805,1750713046451,-749.477381,0.0002,2]
[367242807,1750713046462,-151.0,0.0002,2]
[367242809,1750713046471,-151.0,0.0002,2]
[367242811,1750713046480,-460.0,0.0002004,2]
[367242813,1750713046491,-467.47449656,0.0002004,2]
[367242815,1750713046500,-460.0,0.0002004,2]
[367242817,1750713046510,-232.55687126,0.00020042,2]
[367242819,1750713046520,-1917.77,0.00020042,2]
[367242821,1750713046529,-460.0,0.00020042,2]